[Event "Early-Titled-Tuesday-Blitz-November-28-2023"]
[Site "Chess.com"]
[Date "2023.11.28"]
[Round "10"]
[White "Igor_Lysyj"]
[Black "Goryachkina"]
[Result "1-0"]
[WhiteElo "2809"]
[BlackElo "2620"]
[TimeControl "180+1"]
[EndTime "10:03:36 PST"]
[Termination "Igor_Lysyj won on time"]

1. d4 {[%clk 0:02:59.5]} 1... d5 {[%clk 0:03:00]} 2. c4 {[%clk 0:02:57.7]} 2...
c6 {[%clk 0:03:00.3]} 3. Nf3 {[%clk 0:02:52.9]} 3... Nf6 {[%clk 0:03:00.1]} 4.
e3 {[%clk 0:02:41.9]} 4... Bf5 {[%clk 0:02:59.8]} 5. cxd5 {[%clk 0:02:41.4]}
5... cxd5 {[%clk 0:02:59.7]} 6. Qb3 {[%clk 0:02:41.3]} 6... Qc7 {[%clk
0:02:59.5]} 7. Bd2 {[%clk 0:02:40.4]} 7... e6 {[%clk 0:02:57.9]} 8. Bb5+ {[%clk
0:02:39.7]} 8... Nc6 {[%clk 0:02:57.8]} 9. O-O {[%clk 0:02:39.6]} 9... Bd6
{[%clk 0:02:57.6]} 10. Bb4 {[%clk 0:02:39.5]} 10... O-O {[%clk 0:02:57.1]} 11.
Bxd6 {[%clk 0:02:39.3]} 11... Qxd6 {[%clk 0:02:57.2]} 12. Nbd2 {[%clk
0:02:38.6]} 12... Rfc8 {[%clk 0:02:50.7]} 13. Rfc1 {[%clk 0:02:38.2]} 13... Ne7
{[%clk 0:02:45.7]} 14. Bf1 {[%clk 0:02:37.3]} 14... Rc7 {[%clk 0:02:35.2]} 15.
Qa4 {[%clk 0:02:35.4]} 15... h6 {[%clk 0:02:23.8]} 16. Rxc7 {[%clk 0:02:32.9]}
16... Qxc7 {[%clk 0:02:23.8]} 17. Nb3 {[%clk 0:02:33.1]} 17... Nc8 {[%clk
0:02:15.9]} 18. Rc1 {[%clk 0:02:31.6]} 18... Qd8 {[%clk 0:02:16.1]} 19. Ne5
{[%clk 0:02:22]} 19... Nd6 {[%clk 0:02:12.7]} 20. h3 {[%clk 0:02:21.7]} 20...
Nfe4 {[%clk 0:02:00.9]} 21. Nc5 {[%clk 0:02:09.1]} 21... Qh4 {[%clk 0:01:53.7]}
22. Ncd3 {[%clk 0:01:58.2]} 22... Qd8 {[%clk 0:01:43.6]} 23. Qa3 {[%clk
0:01:47.5]} 23... Nd2 {[%clk 0:01:37]} 24. Be2 {[%clk 0:01:44.4]} 24... N2c4
{[%clk 0:01:35.2]} 25. Qb4 {[%clk 0:01:33.4]} 25... a5 {[%clk 0:01:19.3]} 26.
Qe1 {[%clk 0:01:33.1]} 26... Bxd3 {[%clk 0:00:50.7]} 27. Nxd3 {[%clk 0:01:32.6]}
27... Ne4 {[%clk 0:00:51]} 28. b3 {[%clk 0:01:29.9]} 28... Ncd6 {[%clk
0:00:50.8]} 29. f3 {[%clk 0:01:27.8]} 29... Nf6 {[%clk 0:00:50]} 30. Qd2 {[%clk
0:01:17.8]} 30... Nh5 {[%clk 0:00:43.8]} 31. Qe1 {[%clk 0:01:12.2]} 31... Qg5
{[%clk 0:00:41.4]} 32. f4 {[%clk 0:01:10.2]} 32... Qf5 {[%clk 0:00:21.3]} 33. g4
{[%clk 0:01:06.6]} 33... Qe4 {[%clk 0:00:21.5]} 34. gxh5 {[%clk 0:01:00.8]}
34... Qxe3+ {[%clk 0:00:21.7]} 35. Qf2 {[%clk 0:01:01.1]} 35... Qxh3 {[%clk
0:00:20.6]} 36. Qf3 {[%clk 0:00:58]} 36... Qh4 {[%clk 0:00:19.1]} 37. Rc7 {[%clk
0:00:55.8]} 37... Nf5 {[%clk 0:00:17.8]} 38. Qg4 {[%clk 0:00:44.3]} 38... Qd8
{[%clk 0:00:17.5]} 39. Rc1 {[%clk 0:00:39.7]} 39... Nxd4 {[%clk 0:00:17.2]} 40.
Bf1 {[%clk 0:00:39.7]} 40... Qb6 {[%clk 0:00:14.4]} 41. Kh2 {[%clk 0:00:39.6]}
41... Nf5 {[%clk 0:00:14.6]} 42. Qf3 {[%clk 0:00:33.2]} 42... Qd4 {[%clk
0:00:13.1]} 43. Rc7 {[%clk 0:00:30.8]} 43... Qb6 {[%clk 0:00:12.9]} 44. Rc1
{[%clk 0:00:30.1]} 44... Qd4 {[%clk 0:00:13.2]} 45. Rc7 {[%clk 0:00:29.2]} 45...
Qb6 {[%clk 0:00:13.6]} 46. Rc5 {[%clk 0:00:29.4]} 46... Qd6 {[%clk 0:00:10.5]}
47. Bh3 {[%clk 0:00:28.8]} 47... Nd4 {[%clk 0:00:08.1]} 48. Qe3 {[%clk
0:00:28.1]} 48... Nc6 {[%clk 0:00:08.5]} 49. Rc2 {[%clk 0:00:26.1]} 49... a4
{[%clk 0:00:08.8]} 50. b4 {[%clk 0:00:25.2]} 50... Nxb4 {[%clk 0:00:08.4]} 51.
Nxb4 {[%clk 0:00:25]} 51... Qxb4 {[%clk 0:00:08.9]} 52. Rg2 {[%clk 0:00:25.1]}
52... Qd6 {[%clk 0:00:08.3]} 53. Qg3 {[%clk 0:00:24.9]} 53... Qf8 {[%clk
0:00:08.1]} 54. f5 {[%clk 0:00:24.8]} 54... exf5 {[%clk 0:00:08.4]} 55. Bxf5
{[%clk 0:00:25]} 55... Rd8 {[%clk 0:00:08.6]} 56. Bc2 {[%clk 0:00:24.6]} 56...
Qd6 {[%clk 0:00:08.4]} 57. Bxa4 {[%clk 0:00:18.7]} 57... Qxg3+ {[%clk
0:00:08.2]} 58. Kxg3 {[%clk 0:00:18.9]} 58... g6 {[%clk 0:00:08.1]} 59. hxg6
{[%clk 0:00:18.5]} 59... fxg6 {[%clk 0:00:09]} 60. Kf4 {[%clk 0:00:18.4]} 60...
Kg7 {[%clk 0:00:09.6]} 61. Ke5 {[%clk 0:00:18.5]} 61... d4 {[%clk 0:00:10]} 62.
Rd2 {[%clk 0:00:17.8]} 62... d3 {[%clk 0:00:10.5]} 63. Bb5 {[%clk 0:00:17.1]}
63... h5 {[%clk 0:00:10.1]} 64. Rxd3 {[%clk 0:00:16.5]} 64... Rxd3 {[%clk
0:00:06.6]} 65. Bxd3 {[%clk 0:00:16.1]} 65... h4 {[%clk 0:00:06.9]} 66. a4
{[%clk 0:00:14.4]} 66... h3 {[%clk 0:00:05.5]} 67. a5 {[%clk 0:00:12.6]} 67...
g5 {[%clk 0:00:05.3]} 68. Kf5 {[%clk 0:00:11.9]} 1-0

[Event "Early-Titled-Tuesday-Blitz-November-28-2023"]
[Site "Chess.com"]
[Date "2023.11.28"]
[Round "10"]
[White "wqws"]
[Black "Alen_Yeremyann"]
[Result "1/2-1/2"]
[WhiteElo "2597"]
[BlackElo "2775"]
[TimeControl "180+1"]
[EndTime "10:03:58 PST"]
[Termination "Game drawn by repetition"]

1. e4 {[%clk 0:03:00.9]} 1... Nf6 {[%clk 0:02:59.6]} 2. e5 {[%clk 0:03:00.3]}
2... Nd5 {[%clk 0:02:59.6]} 3. Nc3 {[%clk 0:03:01.1]} 3... Nb6 {[%clk
0:03:00.1]} 4. d4 {[%clk 0:02:57.9]} 4... d6 {[%clk 0:03:00]} 5. Nf3 {[%clk
0:02:58.4]} 5... g6 {[%clk 0:02:59.6]} 6. a4 {[%clk 0:02:57.4]} 6... a5 {[%clk
0:02:59.2]} 7. h4 {[%clk 0:02:55.3]} 7... h5 {[%clk 0:02:58.1]} 8. Bd3 {[%clk
0:02:54.2]} 8... Bg7 {[%clk 0:02:58.1]} 9. Qe2 {[%clk 0:02:53.2]} 9... Bg4
{[%clk 0:02:56.9]} 10. e6 {[%clk 0:02:48.7]} 10... f5 {[%clk 0:02:53.8]} 11. d5
{[%clk 0:02:42.9]} 11... c6 {[%clk 0:02:52.5]} 12. Qe3 {[%clk 0:02:39.1]} 12...
O-O {[%clk 0:02:47.4]} 13. Qg5 {[%clk 0:02:35.5]} 13... Kh7 {[%clk 0:02:45.8]}
14. Nh2 {[%clk 0:02:33.4]} 14... cxd5 {[%clk 0:02:25.6]} 15. Nxg4 {[%clk
0:02:31.8]} 15... Qc8 {[%clk 0:02:09.9]} 16. Ne2 {[%clk 0:02:10.7]} 16... Qxe6
{[%clk 0:02:05.5]} 17. Ne3 {[%clk 0:02:08.9]} 17... Bh6 {[%clk 0:01:42.4]} 18.
Nf4 {[%clk 0:01:28.7]} 18... Qf7 {[%clk 0:01:42]} 19. Nh3 {[%clk 0:01:23.4]}
19... Qe8 {[%clk 0:01:26.5]} 20. Qg3 {[%clk 0:01:10.8]} 20... f4 {[%clk
0:01:26.4]} 21. Qf3 {[%clk 0:01:10.4]} 21... fxe3 {[%clk 0:01:07.3]} 22. Qxh5
{[%clk 0:01:10.1]} 22... Kg7 {[%clk 0:01:02.9]} 23. Qg4 {[%clk 0:01:08.1]} 23...
exf2+ {[%clk 0:00:51.4]} 24. Kf1 {[%clk 0:01:01.3]} 24... Bxc1 {[%clk
0:00:50.4]} 25. Rxc1 {[%clk 0:00:58.5]} 25... e5 {[%clk 0:00:50.1]} 26. Ng5
{[%clk 0:00:53]} 26... Rf6 {[%clk 0:00:49.6]} 27. h5 {[%clk 0:00:52.6]} 27... e4
{[%clk 0:00:49.4]} 28. hxg6 {[%clk 0:00:44.1]} 28... Qxg6 {[%clk 0:00:45.1]} 29.
Rh7+ {[%clk 0:00:38]} 29... Kg8 {[%clk 0:00:44.2]} 30. Be2 {[%clk 0:00:24.2]}
30... N8d7 {[%clk 0:00:41]} 31. Qh4 {[%clk 0:00:21.1]} 31... Raf8 {[%clk
0:00:28.1]} 32. Rh8+ {[%clk 0:00:20.8]} 32... Kg7 {[%clk 0:00:28.6]} 33. Rh7+
{[%clk 0:00:21.1]} 33... Kg8 {[%clk 0:00:29.1]} 34. Bh5 {[%clk 0:00:20.7]} 34...
Qf5 {[%clk 0:00:23.9]} 35. Bg4 {[%clk 0:00:20.9]} 35... Qg6 {[%clk 0:00:24]} 36.
Bxd7 {[%clk 0:00:20.3]} 36... Nxd7 {[%clk 0:00:21.1]} 37. Rxd7 {[%clk
0:00:21.2]} 37... Rf5 {[%clk 0:00:20]} 38. Ne6 {[%clk 0:00:19.6]} 38... e3
{[%clk 0:00:12]} 39. Nxf8 {[%clk 0:00:17.8]} 39... Rxf8 {[%clk 0:00:08.9]} 40.
Re7 {[%clk 0:00:13.6]} 40... d4 {[%clk 0:00:04.6]} 41. Qxd4 {[%clk 0:00:12]}
41... Qh6 {[%clk 0:00:04.1]} 42. Qd5+ {[%clk 0:00:09.3]} 42... Kh8 {[%clk
0:00:03.7]} 43. Qd4+ {[%clk 0:00:09.3]} 43... Kg8 {[%clk 0:00:03.6]} 44. Rxe3
{[%clk 0:00:08.5]} 44... Qh1+ {[%clk 0:00:03.5]} 45. Ke2 {[%clk 0:00:08.6]}
45... f1=Q+ {[%clk 0:00:03.4]} 46. Rxf1 {[%clk 0:00:09]} 46... Qxf1+ {[%clk
0:00:03.5]} 47. Kd2 {[%clk 0:00:09.4]} 47... Qxg2+ {[%clk 0:00:02.1]} 48. Re2
{[%clk 0:00:09.3]} 48... Qg5+ {[%clk 0:00:01.8]} 49. Qe3 {[%clk 0:00:09.5]}
49... Qd5+ {[%clk 0:00:01.5]} 50. Qd3 {[%clk 0:00:09.7]} 50... Qxd3+ {[%clk
0:00:02]} 51. Kxd3 {[%clk 0:00:09.8]} 51... Rf5 {[%clk 0:00:02.8]} 52. Re7
{[%clk 0:00:08.5]} 52... Rf4 {[%clk 0:00:03.4]} 53. b3 {[%clk 0:00:07.1]} 53...
Rb4 {[%clk 0:00:04]} 54. Rd7 {[%clk 0:00:07.3]} 54... Rb6 {[%clk 0:00:03.6]} 55.
Rd8+ {[%clk 0:00:06.7]} 55... Kf7 {[%clk 0:00:03.9]} 56. Ra8 {[%clk 0:00:05.4]}
56... Ke6 {[%clk 0:00:04.1]} 57. Rxa5 {[%clk 0:00:05.4]} 57... Kd7 {[%clk
0:00:05]} 58. Kd4 {[%clk 0:00:05.4]} 58... Rb4+ {[%clk 0:00:02.7]} 59. Kd3
{[%clk 0:00:04.6]} 59... Rh4 {[%clk 0:00:03.2]} 60. Rg5 {[%clk 0:00:04.7]} 60...
Kc6 {[%clk 0:00:03.8]} 61. Kc3 {[%clk 0:00:03.9]} 61... Rh3+ {[%clk 0:00:04.2]}
62. Kb2 {[%clk 0:00:03.9]} 62... Rh4 {[%clk 0:00:05.1]} 63. Ka3 {[%clk 0:00:04]}
63... Rf4 {[%clk 0:00:05.6]} 64. b4 {[%clk 0:00:04.1]} 64... Rf3+ {[%clk
0:00:06]} 65. Kb2 {[%clk 0:00:04.6]} 65... Re3 {[%clk 0:00:05.9]} 66. c3 {[%clk
0:00:05]} 66... Rf3 {[%clk 0:00:06.3]} 67. Kb3 {[%clk 0:00:05.2]} 67... Rh3
{[%clk 0:00:06.9]} 68. b5+ {[%clk 0:00:05.6]} 68... Kb6 {[%clk 0:00:06.8]} 69.
Kb4 {[%clk 0:00:06.1]} 69... Rh4+ {[%clk 0:00:06.5]} 70. c4 {[%clk 0:00:06.5]}
70... Rh1 {[%clk 0:00:07.3]} 71. a5+ {[%clk 0:00:06.1]} 71... Kc7 {[%clk
0:00:08]} 72. Rg7+ {[%clk 0:00:05.7]} 72... Kc8 {[%clk 0:00:08.8]} 73. b6 {[%clk
0:00:04.8]} 73... Rb1+ {[%clk 0:00:08.1]} 74. Kc3 {[%clk 0:00:05.3]} 74... Ra1
{[%clk 0:00:08.8]} 75. Rg8+ {[%clk 0:00:03.6]} 75... Kd7 {[%clk 0:00:09.1]} 76.
Kb4 {[%clk 0:00:03.8]} 76... Rb1+ {[%clk 0:00:09.1]} 77. Kc3 {[%clk 0:00:04.2]}
77... Ra1 {[%clk 0:00:10]} 78. Rg7+ {[%clk 0:00:02.6]} 78... Kc8 {[%clk
0:00:09.5]} 79. Rg8+ {[%clk 0:00:03.2]} 79... Kd7 {[%clk 0:00:10.2]} 1/2-1/2

[Event "Early-Titled-Tuesday-Blitz-November-28-2023"]
[Site "Chess.com"]
[Date "2023.11.28"]
[Round "10"]
[White "LileKoridze"]
[Black "PabloZarnicki"]
[Result "0-1"]
[WhiteElo "2381"]
[BlackElo "2540"]
[TimeControl "180+1"]
[EndTime "10:03:59 PST"]
[Termination "PabloZarnicki won by checkmate"]

1. d4 {[%clk 0:03:00.9]} 1... a5 {[%clk 0:02:56]} 2. c4 {[%clk 0:03:00.4]} 2...
g6 {[%clk 0:02:51.9]} 3. Nc3 {[%clk 0:02:59.3]} 3... Bg7 {[%clk 0:02:50.9]} 4.
e4 {[%clk 0:02:59.1]} 4... c5 {[%clk 0:02:48.7]} 5. Be3 {[%clk 0:02:58.5]} 5...
a4 {[%clk 0:02:47.8]} 6. Nxa4 {[%clk 0:02:30.9]} 6... Nc6 {[%clk 0:02:10.5]} 7.
Nxc5 {[%clk 0:02:25.3]} 7... Qa5+ {[%clk 0:01:58.1]} 8. Bd2 {[%clk 0:02:25.2]}
8... Qb6 {[%clk 0:01:49.6]} 9. Bc3 {[%clk 0:02:25.1]} 9... e5 {[%clk 0:01:30.6]}
10. Na4 {[%clk 0:01:32.9]} 10... Qa7 {[%clk 0:01:20.4]} 11. d5 {[%clk
0:01:23.3]} 11... Nd4 {[%clk 0:01:18.5]} 12. b3 {[%clk 0:01:21.8]} 12... Nf6
{[%clk 0:01:12.7]} 13. Bd3 {[%clk 0:01:18.1]} 13... d6 {[%clk 0:01:12.4]} 14. h3
{[%clk 0:01:17.5]} 14... Bd7 {[%clk 0:01:07.2]} 15. Nb2 {[%clk 0:01:16.9]} 15...
b5 {[%clk 0:01:06.4]} 16. Ne2 {[%clk 0:01:13.8]} 16... O-O {[%clk 0:01:02]} 17.
O-O {[%clk 0:01:12.8]} 17... Nh5 {[%clk 0:00:59.2]} 18. Bxd4 {[%clk 0:01:05]}
18... exd4 {[%clk 0:00:58.3]} 19. cxb5 {[%clk 0:01:05.5]} 19... Qb8 {[%clk
0:00:42.2]} 20. a4 {[%clk 0:00:56.9]} 20... Qd8 {[%clk 0:00:42.2]} 21. Nc4
{[%clk 0:00:52.8]} 21... Qh4 {[%clk 0:00:40.4]} 22. f4 {[%clk 0:00:44.2]} 22...
Bxh3 {[%clk 0:00:35.3]} 23. gxh3 {[%clk 0:00:37.3]} 23... Qxh3 {[%clk
0:00:35.6]} 24. Qe1 {[%clk 0:00:23.9]} 24... Qxd3 {[%clk 0:00:34.6]} 25. Qf2
{[%clk 0:00:14]} 25... Qxe4 {[%clk 0:00:32.1]} 26. Nxd6 {[%clk 0:00:13]} 26...
Qxd5 {[%clk 0:00:32.4]} 27. Nc4 {[%clk 0:00:12.9]} 27... d3 {[%clk 0:00:32.6]}
28. Ng3 {[%clk 0:00:06.7]} 28... Bd4 {[%clk 0:00:32.6]} 29. Ne3 {[%clk
0:00:07.2]} 29... Qc5 {[%clk 0:00:31.8]} 30. Rfe1 {[%clk 0:00:06.9]} 30... Rfe8
{[%clk 0:00:26.4]} 31. Ngf1 {[%clk 0:00:06.3]} 31... Re4 {[%clk 0:00:23.7]} 32.
Rac1 {[%clk 0:00:05.7]} 32... Qe7 {[%clk 0:00:20.4]} 33. Rc4 {[%clk 0:00:03.6]}
33... Re8 {[%clk 0:00:17.1]} 34. Rxd4 {[%clk 0:00:02.9]} 34... Rxd4 {[%clk
0:00:17.4]} 35. Ng2 {[%clk 0:00:01.1]} 35... Re4 {[%clk 0:00:14.8]} 36. Rxe4
{[%clk 0:00:01.4]} 36... Qxe4 {[%clk 0:00:15.3]} 37. b6 {[%clk 0:00:02.1]} 37...
Nf6 {[%clk 0:00:12.1]} 38. a5 {[%clk 0:00:02.6]} 38... Ng4 {[%clk 0:00:12.3]}
39. Qd2 {[%clk 0:00:02.2]} 39... Qd4+ {[%clk 0:00:12.1]} 40. Kh1 {[%clk
0:00:01.5]} 40... Re2 {[%clk 0:00:12.2]} 41. Qd1 {[%clk 0:00:01.2]} 41... Nf2+
{[%clk 0:00:12.4]} 42. Kg1 {[%clk 0:00:01.8]} 42... Nxd1+ {[%clk 0:00:12.6]} 43.
Kh1 {[%clk 0:00:02.7]} 43... Nf2+ {[%clk 0:00:12.6]} 44. Kh2 {[%clk 0:00:03.3]}
44... Ng4+ {[%clk 0:00:12.4]} 45. Kg3 {[%clk 0:00:03.5]} 45... h5 {[%clk
0:00:11.8]} 46. b7 {[%clk 0:00:03.6]} 46... Rxg2+ {[%clk 0:00:12.1]} 47. Kxg2
{[%clk 0:00:03.7]} 47... Qd5+ {[%clk 0:00:12.5]} 48. Kg1 {[%clk 0:00:03.9]}
48... Qxb7 {[%clk 0:00:13.4]} 49. b4 {[%clk 0:00:03.9]} 49... Qxb4 {[%clk
0:00:13.2]} 50. a6 {[%clk 0:00:04.1]} 50... Qc5+ {[%clk 0:00:13]} 51. Kg2 {[%clk
0:00:04.2]} 51... Qc6+ {[%clk 0:00:13.8]} 52. Kg1 {[%clk 0:00:04.1]} 52... Qxa6
{[%clk 0:00:14.4]} 53. Kg2 {[%clk 0:00:04.8]} 53... Qb6 {[%clk 0:00:14.8]} 54.
Nd2 {[%clk 0:00:04.5]} 54... Qe3 {[%clk 0:00:14.7]} 55. Nf3 {[%clk 0:00:04.2]}
55... Qxf3+ {[%clk 0:00:14.6]} 56. Kxf3 {[%clk 0:00:04.5]} 56... f5 {[%clk
0:00:15.5]} 57. Kg2 {[%clk 0:00:03.6]} 57... Kf7 {[%clk 0:00:16]} 58. Kg3 {[%clk
0:00:04.1]} 58... Ke6 {[%clk 0:00:16.6]} 59. Kg2 {[%clk 0:00:04.5]} 59... d2
{[%clk 0:00:16.9]} 60. Kg3 {[%clk 0:00:04.7]} 60... d1=Q {[%clk 0:00:17.1]} 61.
Kh4 {[%clk 0:00:05.6]} 61... Qd2 {[%clk 0:00:15.3]} 62. Kg5 {[%clk 0:00:06]}
62... Kf7 {[%clk 0:00:15.5]} 63. Kh4 {[%clk 0:00:05.8]} 63... Qxf4 {[%clk
0:00:15]} 64. Kh3 {[%clk 0:00:06.4]} 64... Qd2 {[%clk 0:00:14.6]} 65. Kh4 {[%clk
0:00:06.4]} 65... f4 {[%clk 0:00:15.1]} 66. Kg5 {[%clk 0:00:06.5]} 66... f3+
{[%clk 0:00:14.9]} 67. Kh4 {[%clk 0:00:07.1]} 67... f2 {[%clk 0:00:14.9]} 68.
Kg3 {[%clk 0:00:07.4]} 68... Nf6 {[%clk 0:00:13.4]} 69. Kh3 {[%clk 0:00:07.5]}
69... Qe3+ {[%clk 0:00:12.8]} 70. Kh4 {[%clk 0:00:07.7]} 70... Qf4+ {[%clk
0:00:12.6]} 71. Kh3 {[%clk 0:00:08.1]} 71... h4 {[%clk 0:00:12.5]} 72. Kg2
{[%clk 0:00:08.1]} 72... Qg3+ {[%clk 0:00:12.9]} 73. Kf1 {[%clk 0:00:08.4]}
73... h3 {[%clk 0:00:13.1]} 74. Ke2 {[%clk 0:00:08.7]} 74... h2 {[%clk
0:00:13.4]} 75. Kd2 {[%clk 0:00:08.9]} 75... h1=Q {[%clk 0:00:13.7]} 76. Ke2
{[%clk 0:00:09.6]} 76... f1=Q+ {[%clk 0:00:14]} 77. Kd2 {[%clk 0:00:10]} 77...
Qgg1 {[%clk 0:00:14.2]} 78. Kc2 {[%clk 0:00:09.7]} 78... g5 {[%clk 0:00:14.7]}
79. Kb2 {[%clk 0:00:10.2]} 79... g4 {[%clk 0:00:15.2]} 80. Ka2 {[%clk
0:00:10.5]} 80... g3 {[%clk 0:00:15.8]} 81. Kb2 {[%clk 0:00:11.2]} 81... g2
{[%clk 0:00:16.3]} 82. Ka2 {[%clk 0:00:11.8]} 82... Qc1 {[%clk 0:00:15.8]} 83.
Kb3 {[%clk 0:00:12]} 83... Qge1 {[%clk 0:00:16.3]} 84. Ka4 {[%clk 0:00:12.2]}
84... Qhf1 {[%clk 0:00:16.5]} 85. Kb3 {[%clk 0:00:12.3]} 85... g1=Q {[%clk
0:00:16.7]} 86. Ka2 {[%clk 0:00:12.6]} 86... Ng4 {[%clk 0:00:16.8]} 87. Kb3
{[%clk 0:00:12.9]} 87... Nf2 {[%clk 0:00:17]} 88. Ka2 {[%clk 0:00:13.6]} 88...
Nh1 {[%clk 0:00:17.1]} 89. Kb3 {[%clk 0:00:14]} 89... Kf6 {[%clk 0:00:17.6]} 90.
Ka2 {[%clk 0:00:14.6]} 90... Kf5 {[%clk 0:00:18.5]} 91. Kb3 {[%clk 0:00:15]}
91... Kf4 {[%clk 0:00:19.4]} 92. Ka2 {[%clk 0:00:15.5]} 92... Kf3 {[%clk
0:00:20.3]} 93. Kb3 {[%clk 0:00:16.2]} 93... Ke2 {[%clk 0:00:20.4]} 94. Ka2
{[%clk 0:00:16.7]} 94... Kd1 {[%clk 0:00:20.8]} 95. Kb3 {[%clk 0:00:17.1]} 95...
Qec3+ {[%clk 0:00:20.6]} 96. Ka2 {[%clk 0:00:17.5]} 96... Q1b2# {[%clk
0:00:20.4]} 0-1

[Event "Early-Titled-Tuesday-Blitz-November-28-2023"]
[Site "Chess.com"]
[Date "2023.11.28"]
[Round "10"]
[White "Elsa167"]
[Black "ActorXu"]
[Result "1/2-1/2"]
[WhiteElo "2910"]
[BlackElo "2849"]
[TimeControl "180+1"]
[EndTime "10:04:00 PST"]
[Termination "Game drawn - insufficient material"]

1. d4 {[%clk 0:03:00.5]} 1... Nf6 {[%clk 0:02:59.8]} 2. c4 {[%clk 0:03:00.7]}
2... e6 {[%clk 0:03:00.3]} 3. Nf3 {[%clk 0:03:00.1]} 3... d5 {[%clk 0:03:00.5]}
4. Nc3 {[%clk 0:03:00.6]} 4... Bb4 {[%clk 0:03:00.6]} 5. Bg5 {[%clk 0:03:00.9]}
5... h6 {[%clk 0:03:00.7]} 6. Bxf6 {[%clk 0:03:01]} 6... Qxf6 {[%clk 0:03:01.6]}
7. e3 {[%clk 0:03:01.9]} 7... O-O {[%clk 0:03:01.2]} 8. Rc1 {[%clk 0:03:02.5]}
8... dxc4 {[%clk 0:03:01.7]} 9. Bxc4 {[%clk 0:03:02.4]} 9... c5 {[%clk
0:03:02.3]} 10. O-O {[%clk 0:03:02.9]} 10... cxd4 {[%clk 0:03:02.4]} 11. Ne4
{[%clk 0:03:03.3]} 11... Qe7 {[%clk 0:02:59.4]} 12. a3 {[%clk 0:03:03.7]} 12...
Ba5 {[%clk 0:02:58.7]} 13. Qxd4 {[%clk 0:03:04]} 13... Rd8 {[%clk 0:02:52.8]}
14. Qe5 {[%clk 0:03:01.8]} 14... Bb6 {[%clk 0:02:49.6]} 15. Qh5 {[%clk
0:02:55.2]} 15... Bd7 {[%clk 0:02:33.1]} 16. Ne5 {[%clk 0:02:30.4]} 16... Be8
{[%clk 0:02:31]} 17. Rfd1 {[%clk 0:01:58.9]} 17... Nc6 {[%clk 0:02:17.5]} 18.
Nf3 {[%clk 0:01:34.2]} 18... Rxd1+ {[%clk 0:02:07.2]} 19. Rxd1 {[%clk
0:01:34.3]} 19... Rd8 {[%clk 0:02:07.7]} 20. Rc1 {[%clk 0:01:27.7]} 20... Na5
{[%clk 0:01:47]} 21. Ba2 {[%clk 0:01:24.3]} 21... Ba4 {[%clk 0:01:43]} 22. Ne5
{[%clk 0:01:09.5]} 22... Bb3 {[%clk 0:01:19.6]} 23. Bxb3 {[%clk 0:00:59.2]}
23... Nxb3 {[%clk 0:01:19.3]} 24. Rd1 {[%clk 0:00:59.6]} 24... Rxd1+ {[%clk
0:00:39.9]} 25. Qxd1 {[%clk 0:01:00.5]} 25... Qc7 {[%clk 0:00:38.8]} 26. Nd6
{[%clk 0:00:44.8]} 26... f6 {[%clk 0:00:27.2]} 27. Nec4 {[%clk 0:00:42.1]} 27...
Nc5 {[%clk 0:00:24]} 28. Qg4 {[%clk 0:00:33.7]} 28... Qe7 {[%clk 0:00:18.3]} 29.
h4 {[%clk 0:00:24]} 29... Bc7 {[%clk 0:00:16.4]} 30. Nb5 {[%clk 0:00:24.3]}
30... Bb8 {[%clk 0:00:15.4]} 31. h5 {[%clk 0:00:23.9]} 31... a6 {[%clk
0:00:15.1]} 32. Nd4 {[%clk 0:00:22.8]} 32... b5 {[%clk 0:00:13.5]} 33. Na5
{[%clk 0:00:21.4]} 33... Qc7 {[%clk 0:00:12.3]} 34. Nac6 {[%clk 0:00:20.5]}
34... Qh2+ {[%clk 0:00:11.7]} 35. Kf1 {[%clk 0:00:21.2]} 35... Qh1+ {[%clk
0:00:09.5]} 36. Ke2 {[%clk 0:00:21.8]} 36... Be5 {[%clk 0:00:04.8]} 37. b4
{[%clk 0:00:20.4]} 37... Bxd4 {[%clk 0:00:04]} 38. Nxd4 {[%clk 0:00:20.6]} 38...
Na4 {[%clk 0:00:02.6]} 39. Qxe6+ {[%clk 0:00:20.8]} 39... Kh8 {[%clk 0:00:01.7]}
40. Qc8+ {[%clk 0:00:20.4]} 40... Kh7 {[%clk 0:00:02.2]} 41. Ne6 {[%clk
0:00:19.1]} 41... Qxh5+ {[%clk 0:00:02.1]} 42. f3 {[%clk 0:00:19.6]} 42... Qf7
{[%clk 0:00:01.8]} 43. Nf8+ {[%clk 0:00:19.8]} 43... Kg8 {[%clk 0:00:02.2]} 44.
Ne6+ {[%clk 0:00:15.4]} 44... Kh7 {[%clk 0:00:02.9]} 45. f4 {[%clk 0:00:14.4]}
45... h5 {[%clk 0:00:02.7]} 46. f5 {[%clk 0:00:14.8]} 46... h4 {[%clk 0:00:03]}
47. Kf3 {[%clk 0:00:07.6]} 47... Qh5+ {[%clk 0:00:03.2]} 48. Kf4 {[%clk
0:00:07.8]} 48... Qh6+ {[%clk 0:00:03.7]} 49. Ke4 {[%clk 0:00:08.4]} 49... Qh5
{[%clk 0:00:03]} 50. Nf4 {[%clk 0:00:07.1]} 50... Qf7 {[%clk 0:00:02.6]} 51. Ng6
{[%clk 0:00:06.7]} 51... Qc4+ {[%clk 0:00:03]} 52. Qxc4 {[%clk 0:00:06.1]} 52...
bxc4 {[%clk 0:00:03.9]} 53. Nxh4 {[%clk 0:00:05.1]} 53... c3 {[%clk 0:00:04]}
54. Kd3 {[%clk 0:00:06]} 54... Kh6 {[%clk 0:00:04.5]} 55. Nf3 {[%clk 0:00:06.2]}
55... Kh5 {[%clk 0:00:05.1]} 56. Nd4 {[%clk 0:00:06]} 56... Kg4 {[%clk
0:00:05.6]} 57. e4 {[%clk 0:00:06.4]} 57... Kg3 {[%clk 0:00:04.8]} 58. Ne2+
{[%clk 0:00:06.9]} 58... Kxg2 {[%clk 0:00:05.2]} 59. Nxc3 {[%clk 0:00:07.8]}
59... Nb6 {[%clk 0:00:04.7]} 60. a4 {[%clk 0:00:07.1]} 60... Kf3 {[%clk
0:00:04.9]} 61. a5 {[%clk 0:00:07.6]} 61... Nd7 {[%clk 0:00:04.8]} 62. Kd4
{[%clk 0:00:06.4]} 62... Ne5 {[%clk 0:00:05]} 63. b5 {[%clk 0:00:07]} 63... axb5
{[%clk 0:00:05.2]} 64. a6 {[%clk 0:00:07.7]} 64... b4 {[%clk 0:00:05.1]} 65. Nd5
{[%clk 0:00:06.7]} 65... b3 {[%clk 0:00:04.2]} 66. Kc3 {[%clk 0:00:06.1]} 66...
Nc6 {[%clk 0:00:04.7]} 67. Kxb3 {[%clk 0:00:02.7]} 67... Kxe4 {[%clk 0:00:05.4]}
68. Ne7 {[%clk 0:00:03.4]} 68... Na7 {[%clk 0:00:05.3]} 69. Kb4 {[%clk
0:00:04.1]} 69... Kd4 {[%clk 0:00:05.1]} 70. Ka5 {[%clk 0:00:02.1]} 70... Kc5
{[%clk 0:00:05.4]} 71. Ng6 {[%clk 0:00:02.8]} 71... Kc6 {[%clk 0:00:05.3]} 72.
Kb4 {[%clk 0:00:03.2]} 72... Kb6 {[%clk 0:00:05.8]} 73. Kc4 {[%clk 0:00:03.8]}
73... Kxa6 {[%clk 0:00:06.2]} 74. Kd5 {[%clk 0:00:04.7]} 74... Nb5 {[%clk
0:00:06.6]} 75. Ke6 {[%clk 0:00:04.3]} 75... Nd4+ {[%clk 0:00:06.9]} 76. Kf7
{[%clk 0:00:04.8]} 76... Nxf5 {[%clk 0:00:07.6]} 77. Nf4 {[%clk 0:00:03.6]}
77... g5 {[%clk 0:00:07.1]} 78. Nh5 {[%clk 0:00:02.9]} 78... g4 {[%clk
0:00:05.5]} 79. Kxf6 {[%clk 0:00:03.4]} 79... Ng7 {[%clk 0:00:04.5]} 80. Kxg7
{[%clk 0:00:03.3]} 80... g3 {[%clk 0:00:04.8]} 81. Nxg3 {[%clk 0:00:04.2]}
1/2-1/2